bitfinex/quotes_BTCUSD_20251117
["timestamp","ask_amount","ask_price","bid_price","bid_amount"]
[1763416087732,0.02338345,91894.0,91893.0,0.18162459]
[1763416087938,0.00999999,91930.0,91893.0,0.15121188]
[1763416088141,0.00999999,91930.0,91916.0,0.10859296]
[1763416088142,0.34311308,91929.0,91916.0,0.10859296]
[1763416088343,0.02011308,91928.0,91916.0,0.10859296]
[1763416088596,0.0116,91917.0,91916.0,0.10859296]
[1763416089022,0.0116,91917.0,91916.0,0.10954965]
[1763416089379,0.01631729,91927.0,91916.0,0.00095669]
[1763416089579,0.0116,91919.0,91903.0,0.02254]
[1763416089789,0.04341874,91918.0,91911.0,0.10859296]
[1763416089991,0.04341874,91918.0,91916.0,0.001]
[1763416090168,0.04341874,91918.0,91911.0,0.10859296]
[1763416090372,0.04341874,91922.0,91911.0,0.10859296]
[1763416090572,0.04341874,91920.0,91911.0,0.10859296]
[1763416090893,0.05137139,91924.0,91911.0,0.10859296]
[1763416090894,0.04341874,91912.0,91911.0,0.10859296]
[1763416091300,0.05881874,91912.0,91911.0,0.10859296]
[1763416091492,0.04341874,91912.0,91911.0,0.10859296]
[1763416093081,0.04341874,91912.0,91911.0,0.13609226]
[1763416093287,0.04341874,91912.0,91886.0,0.10859296]
[1763416093288,0.36641874,91911.0,91886.0,0.10859296]
[1763416093468,0.04341874,91902.0,91900.0,0.10859296]
[1763416093656,0.04341874,91909.0,91900.0,0.10859296]
[1763416093855,0.05501874,91901.0,91900.0,0.10859296]
[1763416095724,0.04341874,91901.0,91900.0,0.10859296]
[1763416096325,0.04341874,91901.0,91900.0,0.11001372]
[1763416096513,0.00043911,91911.0,91900.0,0.11001372]
[1763416096705,0.00043911,91911.0,91901.0,0.01305752]
[1763416097112,0.0116,91949.0,91910.0,0.96134759]
[1763416097229,0.02008079,91948.0,91943.0,0.10859296]
[1763416097428,0.01266095,91957.0,91943.0,0.10859296]
[1763416097662,0.02447,91955.0,91943.0,0.10859296]
[1763416098742,0.02359,91954.0,91943.0,0.10859296]
[1763416099160,0.04341874,91951.0,91943.0,0.10859296]
[1763416100181,0.01228,91957.0,91943.0,0.10859296]
[1763416100307,0.00013172,91957.0,91944.0,0.01305142]
[1763416100505,0.00013172,91957.0,91947.0,0.76503362]
[1763416100705,0.00013172,91957.0,91948.0,0.01305085]
[1763416101823,0.00013172,91957.0,91944.0,0.01305142]
[1763416101973,0.00013172,91957.0,91943.0,0.11945226]
[1763416102176,0.04341874,91949.0,91944.0,0.10859296]
[1763416102381,0.04341874,91939.0,91929.0,0.10859296]
[1763416103024,0.02359,91956.0,91929.0,0.10859296]
[1763416103025,0.77503361,91960.0,91948.0,0.001]
[1763416103313,0.03640569,91959.0,91948.0,0.001]
[1763416103605,0.01616,91949.0,91930.0,0.01157]
[1763416103839,0.02009848,91948.0,91930.0,0.02371802]
[1763416104054,0.01616,91949.0,91930.0,0.02371802]
[1763416104283,0.02009838,91948.0,91930.0,0.02371802]
[1763416104430,0.00999999,91950.0,91930.0,0.02371802]
[1763416104630,0.02010229,91949.0,91930.0,0.02371802]
[1763416104828,0.04341874,91947.0,91930.0,0.02371802]
[1763416105042,0.04341874,91947.0,91931.0,0.0132311]
[1763416105508,0.04341874,91949.0,91931.0,0.0132311]
[1763416105659,0.04341874,91945.0,91931.0,0.0132311]
[1763416105979,0.04341874,91947.0,91930.0,0.01170172]
[1763416107445,0.77503361,91950.0,91941.0,0.00023191]
[1763416107446,0.36641874,91949.0,91941.0,0.00023191]
[1763416107787,0.04341874,91947.0,91941.0,0.00023191]
[1763416107997,0.06700874,91948.0,91941.0,0.00023191]
[1763416108151,0.05957874,91942.0,91941.0,0.00023191]
[1763416108485,0.04341874,91942.0,91941.0,0.00023191]
[1763416109475,0.08316874,91942.0,91941.0,0.00023191]
[1763416109683,0.04341874,91929.0,91909.0,0.10859296]
[1763416109858,0.36641874,91919.0,91909.0,0.00013189]
[1763416110061,0.07083874,91910.0,91909.0,0.00013189]
[1763416110486,0.04341874,91910.0,91909.0,0.00013189]
[1763416110692,0.05848874,91910.0,91909.0,0.00013189]
[1763416112621,0.04341874,91910.0,91909.0,0.00013189]
[1763416113141,0.04047441,91910.0,91909.0,0.00013189]
[1763416113329,0.05554441,91910.0,91909.0,0.00013189]
[1763416113841,0.04047441,91910.0,91909.0,0.00013189]
[1763416114429,0.05554441,91910.0,91909.0,0.00013189]
[1763416114630,0.07969441,91910.0,91909.0,0.00013189]
[1763416114835,0.04047441,91910.0,91909.0,0.00013189]
[1763416116599,0.05554441,91910.0,91909.0,0.00013189]
[1763416116975,0.04047441,91910.0,91909.0,0.00013189]
[1763416117658,0.04047441,91910.0,91909.0,0.10859296]
[1763416118075,0.04047441,91910.0,91886.0,0.10810943]
[1763416118076,0.04341874,91909.0,91886.0,0.10810943]
[1763416118278,0.04355039,91909.0,91904.0,0.10859296]
[1763416118480,0.36655039,91909.0,91904.0,0.10859296]
[1763416118961,0.04341874,91905.0,91904.0,0.10859296]
[1763416120621,0.00013165,91909.0,91904.0,0.10859296]
[1763416120925,0.00013165,91909.0,91908.0,0.00095682]
[1763416121173,0.00013165,91909.0,91908.0,0.01401335]
[1763416121324,0.00013165,91909.0,91908.0,0.00095682]
[1763416121523,0.00013165,91909.0,91908.0,0.0119118]
[1763416122175,0.00013165,91909.0,91908.0,0.00095682]
[1763416125076,0.00013165,91909.0,91908.0,0.01401335]
[1763416125077,1.65e-06,91909.0,91908.0,0.01401335]
[1763416125297,1.65e-06,91909.0,91908.0,0.00095682]
[1763416130913,0.04341874,91944.0,91913.0,0.14789835]
[1763416131163,0.04355056,91944.0,91943.0,0.10859296]
[1763416132536,0.00013182,91944.0,91943.0,0.10859296]
[1763416138938,0.01520182,91944.0,91943.0,0.10859296]
[1763416139137,0.03935182,91944.0,91943.0,0.10859296]
[1763416139337,0.323,91952.0,91943.0,0.10859296]
[1763416139338,0.24232519,91952.0,91943.0,0.10859296]
[1763416139516,0.01507,91944.0,91943.0,0.10859296]
[1763416140002,0.01066,91945.0,91943.0,0.12045226]
[1763416140319,0.77503361,91960.0,91944.0,0.01585]
[1763416141543,0.36641874,91959.0,91944.0,0.01585]
[1763416141803,0.39128874,91959.0,91943.0,0.12045226]
[1763416141975,0.36641874,91959.0,91943.0,0.12045226]
[1763416142134,0.36641874,91959.0,91944.0,0.01552723]
[1763416142135,0.36641874,91952.0,91944.0,0.01552723]
[1763416143915,0.04341874,91944.0,91931.0,0.01]
[1763416144116,0.05967874,91944.0,91943.0,0.10859296]
[1763416144325,0.08454874,91944.0,91943.0,0.10859296]
[1763416144528,0.323,91952.0,91943.0,0.12444296]
[1763416144701,0.323,91952.0,91951.0,0.02585]
[1763416144899,0.04341874,91951.0,91944.0,0.02649572]
[1763416145331,0.04341874,91960.0,91950.0,0.02585]
[1763416145511,0.04341874,91960.0,91958.0,0.10859296]
[1763416145737,0.04341874,91960.0,91959.0,0.01304929]
[1763416145945,0.78990362,91968.0,91959.0,0.01304929]
[1763416146151,0.78990362,91968.0,91944.0,0.0134443]
[1763416146152,0.05967874,91960.0,91944.0,0.0134443]
[1763416146349,0.05967874,91960.0,91910.0,0.00999999]
[1763416146350,0.05967874,91945.0,91943.0,0.14789835]
[1763416146604,0.05967874,91944.0,91943.0,0.14789835]
[1763416148594,0.08454874,91944.0,91943.0,0.14789835]
[1763416148936,0.05967874,91944.0,91943.0,0.14789835]
[1763416149430,0.05967874,91944.0,91918.0,0.10859296]
[1763416149431,0.323,91952.0,91918.0,0.10859296]
[1763416149432,0.03274186,91983.0,91959.0,0.02585]
[1763416149602,0.76503362,91970.0,91959.0,0.01]
[1763416149937,0.76503362,91970.0,91952.0,0.01]
[1763416150168,0.02487,91975.0,91952.0,0.01]
[1763416150373,0.76503362,91970.0,91952.0,0.01]
[1763416150575,0.04341874,91969.0,91952.0,0.01]
[1763416150732,0.02487,91975.0,91953.0,0.02482]
[1763416151277,0.04341874,91974.0,91953.0,0.02482]
[1763416153058,0.36641874,91969.0,91952.0,0.01]
[1763416153291,0.36641874,91969.0,91967.0,0.10859296]
[1763416153599,0.36641874,91969.0,91968.0,0.02585]
[1763416153958,0.02487,91995.0,91968.0,0.06371801]
[1763416154160,0.01219,92022.0,91981.0,0.10859296]
[1763416154161,0.0004,92000.0,91981.0,0.10859296]
[1763416154366,0.00582096,91990.0,91989.0,0.02585]
[1763416154784,0.00582096,91990.0,91981.0,0.10859296]
[1763416154785,0.04695096,91990.0,91981.0,0.10859296]
[1763416155008,0.02487,91989.0,91976.0,0.01]
[1763416155181,0.04341874,91981.0,91968.0,0.01]
[1763416155382,0.04341874,91981.0,91969.0,0.01542723]
[1763416156231,0.04341874,91981.0,91970.0,0.02482]
[1763416156439,0.04341874,91981.0,91980.0,0.01585]
[1763416157327,0.04341874,91981.0,91970.0,0.02482]
[1763416157766,0.04341874,91988.0,91970.0,0.02482]
[1763416157970,0.04341874,91988.0,91982.0,0.10859296]
[1763416158221,0.04341874,91988.0,91983.0,0.01304588]
[1763416158629,0.00013182,91990.0,91982.0,0.10859296]
[1763416159766,0.00013182,91990.0,91947.0,0.07770031]
[1763416159767,0.04341874,91988.0,91951.0,0.02464]
[1763416159977,0.06029874,91982.0,91966.0,0.01]
[1763416160179,0.04341874,91978.0,91966.0,0.01]
[1763416160593,0.04341874,91976.0,91966.0,0.01]
[1763416161373,0.04341874,91974.0,91954.0,0.0389633]
[1763416161573,0.34827,91975.0,91954.0,0.0389633]
[1763416161574,0.36641874,91969.0,91965.0,0.10859296]
[1763416161987,0.36641874,91969.0,91966.0,0.01]
[1763416163015,0.04341874,91969.0,91965.0,0.10859296]
[1763416163339,0.04341874,91969.0,91968.0,0.01]
[1763416164139,0.04341874,91969.0,91966.0,0.10859296]
[1763416164140,0.04341874,91969.0,91956.0,0.02464]
[1763416164382,0.04341874,91969.0,91955.0,0.01575563]
[1763416164573,0.04341874,91969.0,91965.0,0.10859296]
[1763416164792,0.04341874,91969.0,91968.0,0.02619]
[1763416164931,0.04341874,91984.0,91968.0,0.03923801]
[1763416165131,0.01279,91985.0,91968.0,0.02619]
[1763416165132,0.04341874,91982.0,91968.0,0.02619]
[1763416165333,0.01241,91969.0,91965.0,0.10859296]
[1763416165746,0.04341874,91968.0,91965.0,0.10859296]
[1763416165943,0.04341874,91967.0,91965.0,0.10859296]
[1763416166424,0.04341874,91968.0,91965.0,0.10859296]
[1763416167192,0.04341874,91974.0,91965.0,0.10859296]
[1763416167349,0.04341874,91974.0,91966.0,0.0108593]
[1763416170775,0.06705874,91974.0,91959.0,0.14789835]
[1763416170975,0.04341874,91974.0,91966.0,0.10859296]
[1763416171198,0.04341874,91980.0,91966.0,0.10859296]
[1763416171367,0.04341874,91978.0,91966.0,0.10859296]
[1763416171566,0.02021718,91977.0,91959.0,0.14789835]
[1763416171748,0.02364,91977.0,91965.0,0.10859296]
[1763416173595,0.03287681,91990.0,91976.0,0.02735]
[1763416173802,0.03287681,91990.0,91980.0,0.97138214]
[1763416173803,0.02022441,91989.0,91980.0,0.97138214]
[1763416174003,0.00013182,91990.0,91981.0,0.13595221]
[1763416174226,0.00013182,91990.0,91981.0,0.01]
[1763416174478,0.00013182,91990.0,91976.0,0.0105]
[1763416174479,0.04341874,91988.0,91976.0,0.0105]
[1763416174668,0.00013182,91990.0,91982.0,0.01]
[1763416174865,0.00013182,91990.0,91983.0,0.01304588]
[1763416175067,0.00013182,91990.0,91985.0,0.10859296]
[1763416176012,0.00013182,91990.0,91986.0,0.01304546]
[1763416176634,0.00013182,91990.0,91985.0,0.10859296]
[1763416176837,2.0,92017.0,91986.0,0.01304546]
[1763416177044,0.323,92009.0,91987.0,0.0162757]
[1763416177199,0.02023306,92008.0,91988.0,0.01304517]
[1763416177413,0.02023306,92007.0,91988.0,0.01304517]
[1763416177617,0.02023306,92006.0,91988.0,0.01304517]
[1763416177789,0.02023306,92006.0,91987.0,0.0162757]
[1763416177991,0.323,91999.0,91983.0,0.00587859]
[1763416178203,0.02023306,91998.0,91974.0,0.02524]
[1763416178444,0.02023306,91998.0,91981.0,0.10859296]
[1763416178874,0.04341874,91997.0,91981.0,0.12056296]
[1763416179074,0.04341874,91995.0,91981.0,0.12056296]
[1763416179286,0.02023306,91994.0,91981.0,0.12056296]
[1763416179488,0.02023306,91994.0,91982.0,0.0131063]
[1763416181220,0.034606,92034.0,91982.0,0.0131063]
[1763416181424,0.21731708,92032.0,91982.0,0.0131063]
[1763416181757,0.01361029,92010.0,91983.0,0.03828588]
[1763416182204,0.5,92019.0,91983.0,0.03828588]
[1763416182424,0.01012917,92013.0,91983.0,0.03828588]
[1763416182632,0.5,92019.0,91984.0,0.01719551]
[1763416182633,0.10859296,92010.0,91984.0,0.01719551]
[1763416183046,0.10859296,92010.0,91985.0,0.0130456]
[1763416183254,0.04341874,92009.0,91985.0,0.0130456]
[1763416183473,0.10859296,92008.0,91985.0,0.0130456]
[1763416183679,0.36641874,92007.0,91984.0,0.16509386]
[1763416183908,0.36641874,92007.0,91985.0,0.02987631]
[1763416184124,0.36641874,92007.0,91985.0,0.05511631]
[1763416184125,0.323,92007.0,91985.0,0.05511631]
[1763416184333,0.323,92007.0,91985.0,0.02987631]
[1763416184553,0.323,92007.0,91986.0,0.02524]
[1763416184759,0.01396592,92010.0,91986.0,0.02524]
[1763416185183,0.00043922,92017.0,91996.0,0.10859296]
[1763416185391,0.00043922,92017.0,91997.0,0.0130439]
[1763416185600,0.04341874,92016.0,91985.0,0.14789835]
[1763416185807,0.04341874,92016.0,91986.0,0.05380568]
[1763416186434,0.04341874,92016.0,91996.0,0.10859296]
[1763416186863,0.04341874,92016.0,91997.0,0.0130439]
[1763416188866,0.04341874,92016.0,91985.0,0.14789835]
[1763416188867,0.4750117,92009.0,91970.0,0.08396254]
[1763416189015,0.323,91999.0,91970.0,0.02524]
[1763416189211,0.323,91999.0,91969.0,0.01197]
[1763416189598,0.323,91999.0,91970.0,0.02524]
[1763416189879,0.323,91999.0,91969.0,0.01197]
[1763416190874,0.323,91999.0,91969.0,0.03721]
[1763416191233,0.03274138,92005.0,91982.0,0.10859296]
[1763416191434,0.01407449,92017.0,91983.0,0.05025588]
[1763416191435,0.04341874,92008.0,91983.0,0.05025588]
[1763416191752,0.04341874,92010.0,91983.0,0.05025588]
[1763416191914,0.04341874,92008.0,91983.0,0.05025588]
[1763416192557,0.04341874,92009.0,91983.0,0.02501588]
[1763416192772,0.323,92010.0,91984.0,0.01336088]
[1763416192985,0.04341874,92016.0,91985.0,0.0130456]
[1763416193202,0.04341874,92014.0,91986.0,0.02524]
[1763416193393,0.03040731,92013.0,91986.0,0.02524]
[1763416193590,0.02027113,92012.0,91987.0,0.01722094]
[1763416193733,0.36641874,92014.0,91987.0,0.01722094]
[1763416193734,0.02027113,92011.0,91987.0,0.01722094]
[1763416193940,0.02027113,92010.0,91987.0,0.01722094]
[1763416194139,0.02027113,92009.0,91988.0,0.01304517]
[1763416194337,0.02027113,92008.0,91988.0,0.01304517]
[1763416194544,0.02027113,92007.0,91996.0,0.10859296]
[1763416194774,0.02027113,92006.0,91997.0,0.0250139]
[1763416195119,0.0202743,92005.0,91997.0,0.0250139]
[1763416195324,0.323,92016.0,91997.0,0.0250139]
[1763416195527,0.02027495,92015.0,91997.0,0.0250139]
[1763416195746,0.02027495,92014.0,91997.0,0.0250139]
[1763416195953,0.02027495,92013.0,91997.0,0.0250139]
[1763416196105,0.02027495,92012.0,91997.0,0.04482912]
[1763416196308,0.02027495,92011.0,91997.0,0.04482912]
[1763416196552,0.04341874,92016.0,91997.0,0.04482912]
[1763416196553,0.02027495,92010.0,91997.0,0.04482912]
[1763416196844,0.02027495,92009.0,91997.0,0.04482912]
[1763416197060,0.02027495,92008.0,91997.0,0.04482912]
[1763416197208,0.02027495,92007.0,91997.0,0.04482912]
[1763416197409,0.02027495,92006.0,91997.0,0.04482912]
[1763416197641,0.02027495,92005.0,91997.0,0.04482912]
[1763416197949,0.04341874,92016.0,91997.0,0.01197]
[1763416198309,0.04341874,92016.0,91991.0,0.25649131]
[1763416198310,0.323,92009.0,91991.0,0.25649131]
[1763416198450,0.02027331,92008.0,91991.0,0.25649131]
[1763416199176,0.02027331,92008.0,91991.0,0.14789835]
[1763416199579,0.02027331,92008.0,91992.0,0.10859296]
[1763416200192,0.02027331,92008.0,91992.0,0.13719978]
[1763416200445,0.323,92001.0,91991.0,0.14789835]
[1763416200604,0.063699,92000.0,91991.0,0.14789835]
[1763416200795,0.04341874,91998.0,91991.0,0.14789835]
[1763416200999,0.04341874,91993.0,91968.0,0.05872254]
[1763416201163,0.36641874,91977.0,91957.0,0.05872254]
[1763416201366,0.36641874,91977.0,91941.0,0.05872254]
[1763416201367,0.323,91967.0,91941.0,0.05872254]
[1763416201568,0.323,91950.0,91938.0,0.05872254]
[1763416201803,0.323,91950.0,91933.0,0.00023195]
[1763416201804,0.323,91950.0,91934.0,0.05872254]
[1763416202019,0.323,91950.0,91933.0,0.00023195]
[1763416202258,0.323,91950.0,91935.0,0.10859296]
[1763416202487,0.323,91950.0,91949.0,0.01187]
[1763416202681,0.04341874,91968.0,91937.0,0.01305241]
[1763416202834,0.04341874,91966.0,91937.0,0.01305241]
[1763416203061,0.04341874,91964.0,91938.0,0.02395]
[1763416203253,0.04341874,91964.0,91939.0,0.02942459]
[1763416203461,0.323,91965.0,91963.0,0.02832]
[1763416203659,0.02942459,91990.0,91964.0,0.12504296]
[1763416203881,0.02022325,91989.0,91965.0,0.01304844]
[1763416204083,0.02022325,91988.0,91966.0,0.01739114]
[1763416204350,0.323,91989.0,91966.0,0.01739114]
[1763416204520,0.02022147,91988.0,91967.0,0.01304815]
[1763416204681,0.323,91989.0,91967.0,0.01304815]
[1763416205109,0.323,91979.0,91966.0,0.00013182]
[1763416205321,0.323,91979.0,91967.0,0.10859296]
[1763416205550,0.323,91979.0,91966.0,0.00013182]
[1763416208772,0.01086838,92010.0,91978.0,0.01645]
[1763416208773,0.96063588,92010.0,91978.0,0.01645]
[1763416208992,0.96063588,92020.0,91987.0,0.01187]
[1763416209193,0.96063588,92000.0,91971.0,0.01187]
[1763416209358,0.10859296,92004.0,91962.0,0.01187]
[1763416209359,0.323,91980.0,91962.0,0.01187]
[1763416209561,1.28363588,91980.0,91962.0,0.01187]
[1763416209943,0.323,91980.0,91962.0,0.01187]
[1763416210361,0.323,91980.0,91968.0,0.10859296]
[1763416210565,0.04341874,91998.0,91969.0,0.04905735]
[1763416211959,0.04341874,91998.0,91970.0,0.02395]
[1763416212123,0.04341874,91998.0,91971.0,0.01304759]
[1763416212329,0.323,91999.0,91972.0,0.01304744]
[1763416212775,0.10859296,92004.0,91982.0,0.10859296]
[1763416212929,0.96063588,92010.0,91983.0,0.02390518]
[1763416213133,0.323,91999.0,91983.0,0.01304588]
[1763416213352,0.323,91999.0,91984.0,0.01187]
[1763416213548,0.323,91999.0,91985.0,0.0130456]
[1763416214598,0.36641874,92009.0,91984.0,0.01187]
[1763416214785,0.04341874,92007.0,91984.0,0.01187]
[1763416214962,0.323,92004.0,91984.0,0.01187]
[1763416215817,0.323,91999.0,91984.0,0.01187]
[1763416216578,0.323,91999.0,91976.0,0.01187]
[1763416217000,0.323,91999.0,91982.0,0.10859296]
[1763416217616,0.323,91991.0,91969.0,0.02392948]
[1763416218204,0.96063588,91992.0,91969.0,0.02392948]
[1763416218407,0.96063588,91992.0,91970.0,0.01326543]
[1763416218839,0.96063588,91980.0,91970.0,0.01326543]
[1763416219091,0.21737277,92008.0,91969.0,0.01205948]
[1763416219092,0.24624302,92028.0,91971.0,0.03666759]
[1763416219407,0.96063588,91990.0,91971.0,0.01304759]
[1763416220035,0.96063588,91981.0,91962.0,0.01187]
[1763416220250,0.323,91980.0,91962.0,0.01187]
[1763416221295,0.36641874,91989.0,91962.0,0.01187]
[1763416221521,0.323,91979.0,91962.0,0.01187]
[1763416224768,0.323,91979.0,91938.0,0.01174]
[1763416224769,0.06359238,91978.0,91938.0,0.01174]
[1763416225023,0.06359238,91978.0,91939.0,0.02362]
[1763416225024,0.04341874,91976.0,91939.0,0.02362]
[1763416225222,0.3524,91978.0,91939.0,0.02362]
[1763416225223,0.04341874,91974.0,91939.0,0.02362]
[1763416225461,0.04341874,91972.0,91938.0,0.01174]
[1763416225675,0.04341874,91970.0,91938.0,0.01174]
[1763416225854,0.02017364,91969.0,91940.0,0.02362]
[1763416226061,0.04341874,91977.0,91940.0,0.02362]
[1763416226266,0.04341874,91975.0,91940.0,0.02362]
[1763416226462,0.04341874,91973.0,91938.0,0.01174]
[1763416226664,0.04341874,91971.0,91938.0,0.01174]
[1763416226832,0.04341874,91969.0,91938.0,0.01174]
[1763416227233,0.04341874,91977.0,91938.0,0.01174]
[1763416227512,0.04341874,91975.0,91951.0,0.01174]
[1763416227712,0.04341874,91973.0,91951.0,0.01174]
[1763416227895,0.04341874,91971.0,91951.0,0.01174]
[1763416228593,0.323,91977.0,91951.0,0.01174]
[1763416228817,0.0294,91978.0,91966.0,0.01187182]
[1763416228818,0.02015878,91976.0,91966.0,0.01187182]
[1763416228963,0.0294,91978.0,91966.0,0.01187182]
[1763416229158,0.04341874,91989.0,91966.0,0.01187182]
[1763416229765,0.10859296,92000.0,91967.0,0.13110296]
[1763416229953,0.02362,91979.0,91968.0,0.02734549]
[1763416230153,0.04341874,91989.0,91968.0,0.02734549]
[1763416230358,0.39916545,91989.0,91968.0,0.02734549]
[1763416230754,0.04341874,91987.0,91968.0,0.02734549]
[1763416230956,0.323,91979.0,91968.0,0.01304801]
[1763416231195,0.323,91979.0,91966.0,0.00013182]
[1763416231400,0.323,91979.0,91966.0,0.01208182]
[1763416233280,0.323,91979.0,91967.0,0.01304815]
[1763416234910,0.323,91979.0,91967.0,0.03555815]
[1763416235055,0.323,91979.0,91968.0,0.01562329]
[1763416235256,0.323,91979.0,91969.0,0.01304787]
[1763416235481,0.03274671,91983.0,91969.0,0.01304787]
[1763416235703,0.36641874,91989.0,91970.0,0.01304773]
[1763416235877,0.323,91979.0,91968.0,0.01562329]
[1763416236078,0.323,91979.0,91966.0,0.00013182]
[1763416236690,0.76466353,91980.0,91966.0,0.00013182]
[1763416237440,0.00568914,91979.0,91966.0,0.00013182]
[1763416238869,0.32868914,91979.0,91966.0,0.00013182]
[1763416241083,0.323,91979.0,91966.0,0.00013182]
[1763416242831,0.78717353,91980.0,91966.0,0.00013182]
[1763416243039,0.323,91979.0,91966.0,0.00013182]
[1763416245214,0.00568914,91978.0,91966.0,0.00013182]
[1763416249445,0.04341874,91977.0,91966.0,0.00013182]
[1763416249662,0.04341874,91975.0,91966.0,0.00013182]
[1763416249869,0.04341874,91973.0,91966.0,0.00013182]
[1763416250102,0.02024991,91972.0,91966.0,0.00013182]
[1763416250305,0.02024991,91971.0,91966.0,0.00013182]
[1763416250518,0.02024991,91970.0,91966.0,0.00013182]
[1763416250737,0.04341874,91977.0,91966.0,0.00013182]
[1763416250948,0.02024811,91976.0,91966.0,0.00013182]
[1763416251160,0.0529965,91975.0,91966.0,0.00013182]
[1763416251410,0.32868914,91978.0,91966.0,0.00013182]
[1763416251615,0.00568914,91978.0,91966.0,0.00013182]
[1763416251837,0.02819914,91978.0,91966.0,0.00013182]
[1763416252037,0.00568914,91978.0,91977.0,0.01619]
[1763416252419,0.00568914,91978.0,91977.0,0.05065]
[1763416252824,0.00568914,91978.0,91977.0,0.06158725]
[1763416254213,0.03273945,92009.0,91998.0,0.10859296]
[1763416254412,0.76466353,92020.0,91999.0,0.01304362]
[1763416254626,0.16157639,92019.0,91999.0,0.02499362]
[1763416254832,0.02024744,92018.0,91999.0,0.02499362]
[1763416255052,0.76466353,92010.0,91999.0,0.02499362]
[1763416255253,0.323,92009.0,91988.0,0.01195]
[1763416255478,0.323,92009.0,91988.0,0.0240043]
[1763416257617,0.00043922,92010.0,92008.0,0.02814]
[1763416257948,0.00043922,92010.0,92001.0,0.01195]
[1763416257949,0.00043922,92010.0,92001.0,0.02499333]
[1763416258264,0.32343922,92010.0,92001.0,0.02499333]
[1763416258466,0.32343922,92010.0,92001.0,0.01304333]
[1763416258828,0.32343922,92010.0,91999.0,0.01304362]
[1763416259230,0.32343922,92010.0,91990.0,0.01195]
[1763416259456,0.323,91999.0,91985.0,0.10859296]
[1763416259660,0.323,91999.0,91989.0,0.01195]
[1763416259880,0.323,91999.0,91998.0,0.01568]
[1763416260292,0.323,91999.0,91998.0,0.03971]
[1763416260686,0.323,92009.0,91998.0,0.03971]
[1763416260914,0.323,92009.0,91999.0,0.01304362]
[1763416261123,0.00043922,92010.0,91999.0,0.01304362]
[1763416261349,0.00043922,92010.0,92009.0,0.02759]
[1763416261570,0.00043922,92010.0,92009.0,0.0406322]
[1763416261781,0.00043922,92010.0,92009.0,0.05162]
[1763416261997,0.00043922,92010.0,92009.0,0.0646622]
[1763416262122,0.00043922,92010.0,92009.0,0.07112842]
[1763416262894,0.03271871,92058.0,92018.0,0.01568]
[1763416263099,0.00568914,92045.0,92018.0,0.01568]
[1763416263301,0.76466353,92050.0,92019.0,0.02403]
[1763416263501,0.323,92049.0,92019.0,0.02403]
[1763416263721,0.00568914,92045.0,92019.0,0.02403]
[1763416263949,0.00568914,92045.0,92036.0,0.10859296]
[1763416264134,0.00568914,92045.0,92037.0,0.0108593]
[1763416264294,0.00568914,92045.0,92037.0,0.0227693]
[1763416265020,0.00568914,92045.0,92037.0,0.01191]
[1763416265803,0.00568914,92045.0,91996.0,0.05872254]
[1763416265804,0.00568914,92045.0,92015.0,0.01191]
[1763416265805,0.04341874,92044.0,92015.0,0.01191]
[1763416266034,0.04341874,92044.0,92017.0,0.10859296]
[1763416266035,0.76466353,92025.0,92017.0,0.10859296]
[1763416266594,0.00568914,92045.0,92024.0,0.02759]
[1763416266797,0.00568914,92045.0,92044.0,0.02759]
[1763416267200,0.00582088,92045.0,92044.0,0.02759]
[1763416267382,0.00582088,92045.0,92044.0,0.03405581]
[1763416267585,0.00582088,92045.0,92044.0,0.00646581]
[1763416267808,0.04565088,92045.0,92024.0,0.01191]
[1763416267961,0.04565088,92045.0,92018.0,0.10859296]
[1763416267962,0.76466353,92034.0,92018.0,0.10859296]
[1763416268181,0.00582088,92045.0,92019.0,0.02403]
[1763416268351,0.00582088,92045.0,92020.0,0.0144533]
[1763416268546,0.00582088,92045.0,92021.0,0.0370705]
[1763416269141,0.00582088,92045.0,92044.0,0.01191]
[1763416269341,0.00582088,92045.0,92044.0,0.02759]
[1763416269562,0.00582088,92045.0,92044.0,0.06465724]
[1763416269772,0.00582088,92045.0,92044.0,0.05808572]
[1763416270627,0.0004,92060.0,92044.0,0.02759]
[1763416270842,0.76506353,92060.0,92051.0,0.10859296]
[1763416271120,0.0004,92060.0,92059.0,0.01191]
[1763416271352,0.0004,92060.0,92051.0,0.10859296]
[1763416271353,0.0004,92060.0,92052.0,0.02494611]
[1763416271556,0.0004,92060.0,92053.0,0.01575691]
[1763416271790,0.0004,92060.0,92044.0,0.03594]
[1763416271958,0.0004,92060.0,92047.0,0.10859296]
[1763416272777,0.0004,92060.0,92059.0,0.01191]
[1763416272978,0.0004,92060.0,92047.0,0.10859296]
[1763416273558,0.76506353,92060.0,92048.0,0.10859296]
[1763416273749,0.76506353,92060.0,92049.0,0.0120503]
[1763416274469,0.323,92059.0,92049.0,0.0120503]
[1763416275438,0.323,92059.0,92048.0,0.10859296]
[1763416275439,0.01612,92050.0,92048.0,0.10859296]
[1763416275676,0.02371,92058.0,92036.0,0.14789835]
[1763416275677,0.02412,92049.0,92036.0,0.14789835]
[1763416275904,0.01612,92037.0,92020.0,0.0144533]
[1763416276044,0.008,92034.0,92033.0,0.1087247]
[1763416276580,0.323,92045.0,92033.0,0.13527717]
[1763416276782,0.323,92045.0,92034.0,0.03706865]
[1763416277178,0.008,92049.0,92034.0,0.03706865]
[1763416277949,0.008,92049.0,92047.0,0.10859296]
[1763416278132,0.008,92049.0,92048.0,0.01303667]
[1763416278338,0.008,92049.0,92048.0,0.02519963]
[1763416278559,0.323,92059.0,92048.0,0.02519963]
[1763416278777,0.02008213,92058.0,92048.0,0.02519963]
[1763416278916,0.323,92059.0,92048.0,0.02519963]
[1763416279124,0.02008205,92058.0,92045.0,0.0130371]
[1763416279347,0.02008205,92057.0,92047.0,0.10859296]
[1763416279551,0.76506353,92060.0,92048.0,0.01303667]
[1763416279552,0.02483,92058.0,92048.0,0.01303667]
[1763416279728,0.0004,92060.0,92048.0,0.03786667]
[1763416279729,0.62837915,92060.0,92048.0,0.03786667]
[1763416280116,0.62837915,92060.0,92044.0,0.01218]
[1763416280325,0.34310532,92059.0,92047.0,0.10859296]
[1763416280518,0.02010532,92058.0,92048.0,0.02511397]
[1763416281211,0.02010532,92058.0,92057.0,0.01218]
[1763416281892,0.02010532,92067.0,92057.0,0.01218]
[1763416282134,0.02010532,92067.0,92062.0,0.10859296]
[1763416282342,0.02010532,92066.0,92063.0,0.01303455]
[1763416282556,0.02010532,92065.0,92062.0,0.10859296]
[1763416282778,0.02010532,92064.0,92063.0,0.01303455]
[1763416283209,0.02010532,92069.0,92057.0,0.01218]